[Event "Titled Tuesday Blitz April 25 Late 2023"]
[White "Janaszak, Dawid"]
[Black "Harish, Neeraj"]
[WhiteFideId "1119206"]
[BlackFideId "30958130"]
[WhiteElo "2220"]
[BlackElo "1965"]
[Result "0-1"]
[Round "01"]
[TimeControl "180+2"]
[Date "2023.04.25"]
[WhiteClock "0:00:02"]
[BlackClock "0:00:02"]

1. e4 {[%clk 0:03:00]}  e5 {[%clk 0:02:55]} 2. Nf3 {[%clk 0:03:00]}  Nc6 {[%clk 0:02:55]} 3. d4 {[%clk 0:03:00]}  exd4 {[%clk 0:02:56]} 4. Nxd4 {[%clk 0:03:01]}  Nf6 {[%clk 0:02:55]} 5. Nxc6 {[%clk 0:03:01]}  bxc6 {[%clk 0:02:56]} 6. e5 {[%clk 0:03:01]}  Qe7 {[%clk 0:02:56]} 7. Qe2 {[%clk 0:03:02]}  Nd5 {[%clk 0:02:57]} 8. h4 {[%clk 0:03:01]}  d6 {[%clk 0:02:42]} 9. c4 {[%clk 0:02:59]}  Ba6 {[%clk 0:02:41]} 10. Bg5 {[%clk 0:02:59]}  f6 {[%clk 0:02:36]} 11. exf6 {[%clk 0:02:59]}  Qxe2+ {[%clk 0:02:33]} 12. Bxe2 {[%clk 0:02:59]}  Nxf6 {[%clk 0:02:34]} 13. Nc3 {[%clk 0:02:51]}  O-O-O {[%clk 0:02:21]} 14. O-O-O {[%clk 0:02:51]}  Be7 {[%clk 0:02:18]} 15. b3 {[%clk 0:02:41]}  Rhe8 {[%clk 0:02:15]} 16. Bf3 {[%clk 0:02:40]}  Bb7 {[%clk 0:02:04]} 17. Rhe1 {[%clk 0:02:39]}  h6 {[%clk 0:02:02]} 18. Be3 {[%clk 0:02:39]}  c5 {[%clk 0:02:00]} 19. Bxb7+ {[%clk 0:02:35]}  Kxb7 {[%clk 0:02:01]} 20. f3 {[%clk 0:02:31]}  Nd7 {[%clk 0:01:54]} 21. h5 {[%clk 0:02:24]}  Ne5 {[%clk 0:01:35]} 22. Kc2 {[%clk 0:02:24]}  Nc6 {[%clk 0:01:25]} 23. Nd5 {[%clk 0:02:23]}  Bh4 {[%clk 0:01:21]} 24. Rh1 {[%clk 0:02:19]}  Bg5 {[%clk 0:01:12]} 25. Rde1 {[%clk 0:02:02]}  Bxe3 {[%clk 0:01:12]} 26. Nxe3 {[%clk 0:02:02]}  Nd4+ {[%clk 0:01:11]} 27. Kd3 {[%clk 0:02:02]}  Re6 {[%clk 0:01:10]} 28. Nd5 {[%clk 0:02:01]}  Rde8 {[%clk 0:01:08]} 29. Re3 {[%clk 0:01:56]}  Nf5 {[%clk 0:00:56]} 30. Rxe6 {[%clk 0:01:51]}  Rxe6 {[%clk 0:00:57]} 31. g4 {[%clk 0:01:51]}  Nd4 {[%clk 0:00:56]} 32. Rf1 {[%clk 0:01:50]}  Re2 {[%clk 0:00:54]} 33. Nc3 {[%clk 0:01:49]}  Rg2 {[%clk 0:00:46]} 34. Ke4 {[%clk 0:01:30]}  Rc2 {[%clk 0:00:43]} 35. Kd3 {[%clk 0:01:30]}  Rg2 {[%clk 0:00:42]} 36. b4 {[%clk 0:01:16]}  Ne6 {[%clk 0:00:34]} 37. b5 {[%clk 0:01:11]}  a6 {[%clk 0:00:25]} 38. a4 {[%clk 0:01:11]}  Nd4 {[%clk 0:00:21]} 39. Ke4 {[%clk 0:01:06]}  axb5 {[%clk 0:00:20]} 40. Nxb5 {[%clk 0:01:05]}  Nxb5 {[%clk 0:00:20]} 41. axb5 {[%clk 0:01:05]}  Rc2 {[%clk 0:00:20]} 42. Kd3 {[%clk 0:01:06]}  Rg2 {[%clk 0:00:20]} 43. Re1 {[%clk 0:01:06]}  Kb6 {[%clk 0:00:20]} 44. Re7 {[%clk 0:01:04]}  Rf2 {[%clk 0:00:20]} 45. Ke3 {[%clk 0:01:04]}  Rc2 {[%clk 0:00:20]} 46. Kd3 {[%clk 0:01:03]}  Rf2 {[%clk 0:00:20]} 47. Rf7 {[%clk 0:01:03]}  Ka5 {[%clk 0:00:14]} 48. Ke3 {[%clk 0:01:02]}  Rc2 {[%clk 0:00:14]} 49. Rxg7 {[%clk 0:00:58]}  Rxc4 {[%clk 0:00:14]} 50. g5 {[%clk 0:00:46]}  hxg5 {[%clk 0:00:13]} 51. Rxg5 {[%clk 0:00:46]}  Rh4 {[%clk 0:00:13]} 52. f4 {[%clk 0:00:47]}  Kxb5 {[%clk 0:00:14]} 53. f5 {[%clk 0:00:48]}  Rh3+ {[%clk 0:00:11]} 54. Kf4 {[%clk 0:00:47]}  Kc6 {[%clk 0:00:11]} 55. f6 {[%clk 0:00:47]}  Kd7 {[%clk 0:00:12]} 56. Kf5 {[%clk 0:00:46]}  Rf3+ {[%clk 0:00:11]} 57. Kg6 {[%clk 0:00:46]}  Ke6 {[%clk 0:00:10]} 58. Kg7 {[%clk 0:00:44]}  Rxf6 {[%clk 0:00:10]} 59. Rg6 {[%clk 0:00:44]}  Rxg6+ {[%clk 0:00:08]} 60. Kxg6 {[%clk 0:00:44]}  c4 {[%clk 0:00:08]} 61. h6 {[%clk 0:00:45]}  c3 {[%clk 0:00:09]} 62. h7 {[%clk 0:00:46]}  c2 {[%clk 0:00:10]} 63. h8=Q {[%clk 0:00:47]}  c1=Q {[%clk 0:00:10]} 64. Qe8+ {[%clk 0:00:44]}  Kd5 {[%clk 0:00:10]} 65. Qf7+ {[%clk 0:00:41]}  Kc6 {[%clk 0:00:10]} 66. Qe8+ {[%clk 0:00:41]}  Kb6 {[%clk 0:00:07]} 67. Qb8+ {[%clk 0:00:42]}  Kc6 {[%clk 0:00:07]} 68. Qa8+ {[%clk 0:00:42]}  Kd7 {[%clk 0:00:06]} 69. Qa4+ {[%clk 0:00:40]}  Qc6 {[%clk 0:00:05]} 70. Qg4+ {[%clk 0:00:41]}  Kd8 {[%clk 0:00:05]} 71. Kf6 {[%clk 0:00:40]}  d5+ {[%clk 0:00:05]} 72. Kg5 {[%clk 0:00:34]}  Qd6 {[%clk 0:00:03]} 73. Qa4 {[%clk 0:00:33]}  d4 {[%clk 0:00:02]} 74. Qa8+ {[%clk 0:00:33]}  Ke7 {[%clk 0:00:02]} 75. Qa1 {[%clk 0:00:29]}  d3 {[%clk 0:00:02]} 76. Qg7+ {[%clk 0:00:30]}  Kd8 {[%clk 0:00:01]} 77. Qg8+ {[%clk 0:00:30]}  Kd7 {[%clk 0:00:02]} 78. Kf5 {[%clk 0:00:22]}  Kc6 {[%clk 0:00:02]} 79. Qa8+ {[%clk 0:00:20]}  Kd7 {[%clk 0:00:02]} 80. Qa4+ {[%clk 0:00:18]}  c6 {[%clk 0:00:02]} 81. Qa7+ {[%clk 0:00:18]}  Qc7 {[%clk 0:00:02]} 82. Qd4+ {[%clk 0:00:18]}  Qd6 {[%clk 0:00:02]} 83. Qa7+ {[%clk 0:00:19]}  Kc8 {[%clk 0:00:03]} 84. Qa8+ {[%clk 0:00:19]}  Kc7 {[%clk 0:00:03]} 85. Qa7+ {[%clk 0:00:19]}  Kd8 {[%clk 0:00:04]} 86. Qa8+ {[%clk 0:00:19]}  Ke7 {[%clk 0:00:05]} 87. Qa1 {[%clk 0:00:11]}  Qd5+ {[%clk 0:00:03]} 88. Kg6 {[%clk 0:00:10]}  d2 {[%clk 0:00:03]} 89. Qf6+ {[%clk 0:00:10]}  Kd7 {[%clk 0:00:03]} 90. Qg7+ {[%clk 0:00:10]}  Kc8 {[%clk 0:00:03]} 91. Qf8+ {[%clk 0:00:10]}  Kc7 {[%clk 0:00:03]} 92. Kh6 {[%clk 0:00:02]}  Qd6+ {[%clk 0:00:03]} 93. Kh7 {[%clk 0:00:02]}  Qxf8 {[%clk 0:00:02]} 0-1


[Site "https://www.chess.com"]

[Event "Titled Tuesday Blitz April 25 Late 2023"]
[White "Lenaerts, Lennert"]
[Black "Kraus, Tomas"]
[WhiteFideId "211435"]
[BlackFideId "331708"]
[WhiteElo "2334"]
[BlackElo "2389"]
[Result "1-0"]
[Round "01"]
[TimeControl "180+2"]
[Date "2023.04.25"]
[WhiteClock "0:01:28"]
[BlackClock "0:00:18"]

1. d4 {[%clk 0:03:00]}  Nf6 {[%clk 0:02:50]} 2. c4 {[%clk 0:03:00]}  e6 {[%clk 0:02:50]} 3. Nc3 {[%clk 0:03:01]}  Bb4 {[%clk 0:02:49]} 4. g3 {[%clk 0:03:00]}  d5 {[%clk 0:02:46]} 5. Bg2 {[%clk 0:03:00]}  O-O {[%clk 0:02:45]} 6. Nf3 {[%clk 0:03:01]}  b6 {[%clk 0:02:39]} 7. O-O {[%clk 0:03:00]}  Bb7 {[%clk 0:02:39]} 8. Ne5 {[%clk 0:02:56]}  Qc8 {[%clk 0:02:28]} 9. Bg5 {[%clk 0:02:47]}  Be7 {[%clk 0:02:23]} 10. cxd5 {[%clk 0:02:11]}  Nxd5 {[%clk 0:02:05]} 11. Bxe7 {[%clk 0:02:12]}  Nxe7 {[%clk 0:02:04]} 12. Bxb7 {[%clk 0:02:12]}  Qxb7 {[%clk 0:02:05]} 13. Rc1 {[%clk 0:02:12]}  Rd8 {[%clk 0:02:00]} 14. e3 {[%clk 0:02:07]}  c5 {[%clk 0:01:59]} 15. Qf3 {[%clk 0:02:07]}  Qxf3 {[%clk 0:01:57]} 16. Nxf3 {[%clk 0:02:08]}  cxd4 {[%clk 0:01:56]} 17. Nxd4 {[%clk 0:02:09]}  Nbc6 {[%clk 0:01:53]} 18. Nxc6 {[%clk 0:02:09]}  Nxc6 {[%clk 0:01:54]} 19. Rfd1 {[%clk 0:02:10]}  Rxd1+ {[%clk 0:01:47]} 20. Rxd1 {[%clk 0:02:10]}  Rd8 {[%clk 0:01:47]} 21. Rxd8+ {[%clk 0:02:10]}  Nxd8 {[%clk 0:01:47]} 22. Kg2 {[%clk 0:02:11]}  Kf8 {[%clk 0:01:45]} 23. Kf3 {[%clk 0:02:11]}  Ke7 {[%clk 0:01:45]} 24. Ke4 {[%clk 0:02:12]}  Nc6 {[%clk 0:01:42]} 25. f4 {[%clk 0:02:05]}  f5+ {[%clk 0:01:39]} 26. Kd3 {[%clk 0:02:05]}  e5 {[%clk 0:01:31]} 27. Kc4 {[%clk 0:02:02]}  Ke6 {[%clk 0:01:07]} 28. Kb5 {[%clk 0:02:01]}  Kd6 {[%clk 0:01:04]} 29. Ka6 {[%clk 0:01:59]}  exf4 {[%clk 0:00:42]} 30. exf4 {[%clk 0:01:58]}  Kc7 {[%clk 0:00:42]} 31. Nb5+ {[%clk 0:01:49]}  Kb8 {[%clk 0:00:42]} 32. a3 {[%clk 0:01:50]}  g6 {[%clk 0:00:30]} 33. h4 {[%clk 0:01:32]}  h5 {[%clk 0:00:25]} 34. b4 {[%clk 0:01:31]}  Ka8 {[%clk 0:00:22]} 35. Nc7+ {[%clk 0:01:29]}  Kb8 {[%clk 0:00:22]} 36. Ne6 {[%clk 0:01:29]}  Nd4 {[%clk 0:00:18]} 37. Nxd4 {[%clk 0:01:28]} 1-0


[Site "https://www.chess.com"]

[Event "Titled Tuesday Blitz April 25 Late 2023"]
[White "Leenhouts, Koen"]
[Black "Stanisz, Patryk"]
[WhiteFideId "1008439"]
[BlackFideId "1123106"]
[WhiteElo "2409"]
[BlackElo "2069"]
[Result "1-0"]
[Round "01"]
[TimeControl "180+2"]
[Date "2023.04.25"]
[WhiteClock "0:00:43"]
[BlackClock "0:00:02"]

1. e4 {[%clk 0:02:57]}  c5 {[%clk 0:02:59]} 2. Nf3 {[%clk 0:02:56]}  Nc6 {[%clk 0:02:59]} 3. Bb5 {[%clk 0:02:52]}  g6 {[%clk 0:02:59]} 4. Bxc6 {[%clk 0:02:50]}  dxc6 {[%clk 0:02:58]} 5. h3 {[%clk 0:02:50]}  Bg7 {[%clk 0:02:59]} 6. d3 {[%clk 0:02:50]}  Nf6 {[%clk 0:02:59]} 7. Nc3 {[%clk 0:02:50]}  Nd7 {[%clk 0:02:59]} 8. O-O {[%clk 0:02:49]}  e5 {[%clk 0:03:00]} 9. Be3 {[%clk 0:02:49]}  Qe7 {[%clk 0:03:00]} 10. Nh2 {[%clk 0:02:48]}  Nf8 {[%clk 0:02:59]} 11. f4 {[%clk 0:02:47]}  exf4 {[%clk 0:03:00]} 12. Bxf4 {[%clk 0:02:47]}  Ne6 {[%clk 0:03:00]} 13. Be3 {[%clk 0:02:47]}  Nd4 {[%clk 0:02:57]} 14. Qd2 {[%clk 0:02:47]}  h6 {[%clk 0:02:50]} 15. Rf2 {[%clk 0:02:46]}  Be6 {[%clk 0:02:48]} 16. Raf1 {[%clk 0:02:46]}  O-O-O {[%clk 0:02:47]} 17. Ng4 {[%clk 0:02:43]}  Bxg4 {[%clk 0:02:15]} 18. Rxf7 {[%clk 0:02:39]}  Qh4 {[%clk 0:01:52]} 19. Rxg7 {[%clk 0:02:31]}  Bxh3 {[%clk 0:01:43]} 20. Bf4 {[%clk 0:02:09]}  Bd7 {[%clk 0:01:29]} 21. Na4 {[%clk 0:01:54]}  g5 {[%clk 0:00:49]} 22. Bh2 {[%clk 0:01:50]}  Rhf8 {[%clk 0:00:46]} 23. Rgf7 {[%clk 0:01:42]}  Rxf7 {[%clk 0:00:42]} 24. Rxf7 {[%clk 0:01:43]}  b6 {[%clk 0:00:34]} 25. c3 {[%clk 0:01:33]}  Qh5 {[%clk 0:00:33]} 26. Rf2 {[%clk 0:01:28]}  Ne6 {[%clk 0:00:25]} 27. b4 {[%clk 0:01:19]}  cxb4 {[%clk 0:00:23]} 28. cxb4 {[%clk 0:01:19]}  Rf8 {[%clk 0:00:18]} 29. Nc3 {[%clk 0:01:14]}  Rxf2 {[%clk 0:00:16]} 30. Qxf2 {[%clk 0:01:15]}  Kb7 {[%clk 0:00:12]} 31. d4 {[%clk 0:01:10]}  Qg4 {[%clk 0:00:08]} 32. d5 {[%clk 0:01:04]}  Nf4 {[%clk 0:00:08]} 33. Bxf4 {[%clk 0:01:03]}  gxf4 {[%clk 0:00:09]} 34. Qf3 {[%clk 0:00:59]}  Qg7 {[%clk 0:00:03]} 35. b5 {[%clk 0:00:56]}  cxb5 {[%clk 0:00:03]} 36. Ne2 {[%clk 0:00:52]}  Qa1+ {[%clk 0:00:02]} 37. Kh2 {[%clk 0:00:52]}  Qxa2 {[%clk 0:00:03]} 38. Nxf4 {[%clk 0:00:49]}  Qb2 {[%clk 0:00:02]} 39. Nd3 {[%clk 0:00:47]}  Qg7 {[%clk 0:00:02]} 40. e5 {[%clk 0:00:47]}  h5 {[%clk 0:00:02]} 41. e6 {[%clk 0:00:46]}  Bxe6 {[%clk 0:00:02]} 42. dxe6+ {[%clk 0:00:46]}  Kb8 {[%clk 0:00:02]} 43. Qf4+ {[%clk 0:00:44]}  Kb7 {[%clk 0:00:02]} 44. Qf7+ {[%clk 0:00:43]} 1-0


[Site "https://www.chess.com"]

[Event "Titled Tuesday Blitz April 25 Late 2023"]
[White "Zeynalli, Rashad"]
[Black "Simonovic, Miroslav"]
[WhiteFideId "13403320"]
[BlackFideId "919152"]
[WhiteElo "2125"]
[BlackElo "2042"]
[Result "1-0"]
[Round "01"]
[TimeControl "180+2"]
[Date "2023.04.25"]
[WhiteClock "0:00:12"]
[BlackClock "0:00:03"]

1. d4 {[%clk 0:02:59]}  Nf6 {[%clk 0:02:59]} 2. Bf4 {[%clk 0:02:59]}  c5 {[%clk 0:02:59]} 3. e3 {[%clk 0:02:57]}  b6 {[%clk 0:02:59]} 4. Nf3 {[%clk 0:02:56]}  Bb7 {[%clk 0:02:59]} 5. Nc3 {[%clk 0:02:48]}  g6 {[%clk 0:02:59]} 6. d5 {[%clk 0:02:45]}  d6 {[%clk 0:02:58]} 7. h3 {[%clk 0:02:42]}  Bg7 {[%clk 0:02:58]} 8. Bc4 {[%clk 0:02:35]}  O-O {[%clk 0:02:57]} 9. O-O {[%clk 0:02:35]}  a6 {[%clk 0:02:57]} 10. a4 {[%clk 0:02:34]}  Nbd7 {[%clk 0:02:57]} 11. e4 {[%clk 0:02:34]}  Qc7 {[%clk 0:02:57]} 12. Re1 {[%clk 0:02:32]}  Ne5 {[%clk 0:02:56]} 13. Nxe5 {[%clk 0:02:09]}  dxe5 {[%clk 0:02:57]} 14. Be3 {[%clk 0:02:07]}  Ne8 {[%clk 0:02:53]} 15. Qd2 {[%clk 0:02:01]}  Nd6 {[%clk 0:02:52]} 16. Bf1 {[%clk 0:02:01]}  Rfd8 {[%clk 0:02:35]} 17. Bh6 {[%clk 0:01:58]}  Bh8 {[%clk 0:02:35]} 18. f4 {[%clk 0:01:49]}  f5 {[%clk 0:02:20]} 19. fxe5 {[%clk 0:01:18]}  Bxe5 {[%clk 0:02:21]} 20. Bf4 {[%clk 0:00:51]}  Nxe4 {[%clk 0:02:14]} 21. Nxe4 {[%clk 0:00:48]}  Bxf4 {[%clk 0:02:05]} 22. d6 {[%clk 0:00:48]}  Bxd6 {[%clk 0:01:56]} 23. Nxd6 {[%clk 0:00:48]}  exd6 {[%clk 0:01:50]} 24. Qg5 {[%clk 0:00:46]}  Rd7 {[%clk 0:01:42]} 25. Re3 {[%clk 0:00:40]}  d5 {[%clk 0:01:29]} 26. Rae1 {[%clk 0:00:40]}  Rf8 {[%clk 0:01:23]} 27. Re7 {[%clk 0:00:35]}  Qd6 {[%clk 0:01:16]} 28. Rxd7 {[%clk 0:00:30]}  Qxd7 {[%clk 0:01:17]} 29. Re7 {[%clk 0:00:29]}  Qd8 {[%clk 0:01:17]} 30. Qe3 {[%clk 0:00:27]}  Bc8 {[%clk 0:01:08]} 31. Bxa6 {[%clk 0:00:22]}  Qd6 {[%clk 0:00:52]} 32. Ra7 {[%clk 0:00:14]}  Bxa6 {[%clk 0:00:45]} 33. Qh6 {[%clk 0:00:14]}  Rf7 {[%clk 0:00:31]} 34. Ra8+ {[%clk 0:00:14]}  Qf8 {[%clk 0:00:31]} 35. Rxf8+ {[%clk 0:00:13]}  Rxf8 {[%clk 0:00:31]} 36. Qe3 {[%clk 0:00:13]}  Kf7 {[%clk 0:00:20]} 37. Qe5 {[%clk 0:00:13]}  d4 {[%clk 0:00:14]} 38. Qc7+ {[%clk 0:00:13]}  Kg8 {[%clk 0:00:12]} 39. Qxb6 {[%clk 0:00:13]}  Be2 {[%clk 0:00:04]} 40. Qe6+ {[%clk 0:00:11]}  Kg7 {[%clk 0:00:03]} 41. Qxe2 {[%clk 0:00:12]}  Rd8 {[%clk 0:00:03]} 42. Qe7+ {[%clk 0:00:12]} 1-0


[Site "https://www.chess.com"]

[Event "Titled Tuesday Blitz April 25 Late 2023"]
[White "Dylag, Emilia"]
[Black "Ozates, Tuna"]
[WhiteFideId "21805172"]
[BlackFideId "6354521"]
[WhiteElo "1878"]
[BlackElo "2151"]
[Result "0-1"]
[Round "01"]
[TimeControl "180+2"]
[Date "2023.04.25"]
[WhiteClock "0:00:05"]
[BlackClock "0:00:10"]

1. d4 {[%clk 0:02:57]}  f5 {[%clk 0:02:56]} 2. c4 {[%clk 0:02:56]}  Nf6 {[%clk 0:02:57]} 3. Nc3 {[%clk 0:02:55]}  e6 {[%clk 0:02:58]} 4. Qc2 {[%clk 0:02:49]}  d5 {[%clk 0:02:55]} 5. Nf3 {[%clk 0:02:46]}  c6 {[%clk 0:02:55]} 6. Bf4 {[%clk 0:02:45]}  Bb4 {[%clk 0:02:52]} 7. e3 {[%clk 0:02:45]}  Ne4 {[%clk 0:02:50]} 8. Bd3 {[%clk 0:02:45]}  O-O {[%clk 0:02:51]} 9. Ne5 {[%clk 0:02:43]}  Nd7 {[%clk 0:02:50]} 10. f3 {[%clk 0:02:42]}  Nxe5 {[%clk 0:02:48]} 11. Bxe5 {[%clk 0:02:39]}  Nf6 {[%clk 0:02:42]} 12. O-O {[%clk 0:02:33]}  b6 {[%clk 0:02:41]} 13. Rac1 {[%clk 0:02:30]}  Bd7 {[%clk 0:02:31]} 14. cxd5 {[%clk 0:02:26]}  cxd5 {[%clk 0:02:31]} 15. Nb5 {[%clk 0:02:26]}  Rc8 {[%clk 0:02:27]} 16. Qb3 {[%clk 0:02:17]}  Bxb5 {[%clk 0:02:17]} 17. Bxb5 {[%clk 0:02:15]}  Qe7 {[%clk 0:02:07]} 18. Bxf6 {[%clk 0:02:03]}  gxf6 {[%clk 0:02:04]} 19. Rc2 {[%clk 0:01:53]}  Rxc2 {[%clk 0:01:53]} 20. Qxc2 {[%clk 0:01:54]}  Bd6 {[%clk 0:01:53]} 21. Qc6 {[%clk 0:01:52]}  Kg7 {[%clk 0:01:34]} 22. e4 {[%clk 0:01:51]}  dxe4 {[%clk 0:01:26]} 23. fxe4 {[%clk 0:01:52]}  f4 {[%clk 0:01:24]} 24. d5 {[%clk 0:00:56]}  e5 {[%clk 0:01:18]} 25. a3 {[%clk 0:00:55]}  f5 {[%clk 0:01:07]} 26. exf5 {[%clk 0:00:50]}  Rxf5 {[%clk 0:01:08]} 27. Bd3 {[%clk 0:00:49]}  e4 {[%clk 0:01:01]} 28. Bc2 {[%clk 0:00:31]}  Bc5+ {[%clk 0:00:46]} 29. Kh1 {[%clk 0:00:30]}  Rf6 {[%clk 0:00:27]} 30. Qa4 {[%clk 0:00:28]}  e3 {[%clk 0:00:25]} 31. Qe4 {[%clk 0:00:24]}  Qxe4 {[%clk 0:00:17]} 32. Bxe4 {[%clk 0:00:25]}  Rf8 {[%clk 0:00:15]} 33. Bf3 {[%clk 0:00:23]}  Kf6 {[%clk 0:00:15]} 34. Rd1 {[%clk 0:00:23]}  Ke5 {[%clk 0:00:16]} 35. Rd3 {[%clk 0:00:16]}  Bd4 {[%clk 0:00:16]} 36. b3 {[%clk 0:00:15]}  Rc8 {[%clk 0:00:16]} 37. h3 {[%clk 0:00:12]}  Rc1+ {[%clk 0:00:15]} 38. Rd1 {[%clk 0:00:12]}  Rc3 {[%clk 0:00:14]} 39. d6 {[%clk 0:00:09]}  Rc8 {[%clk 0:00:14]} 40. d7 {[%clk 0:00:09]}  Rd8 {[%clk 0:00:15]} 41. Bg4 {[%clk 0:00:09]}  h5 {[%clk 0:00:12]} 42. Bxh5 {[%clk 0:00:09]}  Rxd7 {[%clk 0:00:12]} 43. Bf3 {[%clk 0:00:09]}  Rc7 {[%clk 0:00:12]} 44. h4 {[%clk 0:00:09]}  Rc3 {[%clk 0:00:12]} 45. h5 {[%clk 0:00:09]}  Rc7 {[%clk 0:00:07]} 46. Kh2 {[%clk 0:00:09]}  Bc3 {[%clk 0:00:07]} 47. Kh3 {[%clk 0:00:08]}  Bd2 {[%clk 0:00:07]} 48. Kg4 {[%clk 0:00:07]}  Rg7+ {[%clk 0:00:08]} 49. Kh4 {[%clk 0:00:06]}  Kf5 {[%clk 0:00:08]} 50. Kh3 {[%clk 0:00:05]}  Kg5 {[%clk 0:00:08]} 51. Rf1 {[%clk 0:00:04]}  Rc7 {[%clk 0:00:08]} 52. Rd1 {[%clk 0:00:04]}  Rc3 {[%clk 0:00:08]} 53. b4 {[%clk 0:00:03]}  Rxa3 {[%clk 0:00:08]} 54. b5 {[%clk 0:00:04]}  Rb3 {[%clk 0:00:08]} 55. Be2 {[%clk 0:00:04]}  Ra3 {[%clk 0:00:06]} 56. Kh2 {[%clk 0:00:04]}  Kh4 {[%clk 0:00:05]} 57. h6 {[%clk 0:00:03]}  Rc3 {[%clk 0:00:06]} 58. h7 {[%clk 0:00:03]}  Rc8 {[%clk 0:00:06]} 59. Bd3 {[%clk 0:00:04]}  Rh8 {[%clk 0:00:06]} 60. Rf1 {[%clk 0:00:03]}  Kg4 {[%clk 0:00:06]} 61. Rd1 {[%clk 0:00:03]}  Kg5 {[%clk 0:00:06]} 62. Rf1 {[%clk 0:00:03]}  Kg4 {[%clk 0:00:06]} 63. Rd1 {[%clk 0:00:03]}  Rd8 {[%clk 0:00:06]} 64. Rf1 {[%clk 0:00:02]}  Kg5 {[%clk 0:00:06]} 65. Rd1 {[%clk 0:00:02]}  Kh6 {[%clk 0:00:07]} 66. Kh3 {[%clk 0:00:03]}  Kg7 {[%clk 0:00:07]} 67. Kg4 {[%clk 0:00:03]}  Rxd3 {[%clk 0:00:07]} 68. Kf3 {[%clk 0:00:02]}  Rd5 {[%clk 0:00:07]} 69. Ke2 {[%clk 0:00:03]}  Rxb5 {[%clk 0:00:07]} 70. Kf3 {[%clk 0:00:03]}  Kxh7 {[%clk 0:00:08]} 71. Ke2 {[%clk 0:00:03]}  Rc5 {[%clk 0:00:08]} 72. Kf3 {[%clk 0:00:04]}  b5 {[%clk 0:00:09]} 73. Ke2 {[%clk 0:00:04]}  b4 {[%clk 0:00:10]} 74. Rxd2 {[%clk 0:00:05]}  exd2 {[%clk 0:00:10]} 0-1


[Site "https://www.chess.com"]

[Event "Titled Tuesday Blitz April 25 Late 2023"]
[White "Broca Jimenez, Fernando"]
[Black "Martinez Ramirez, Lennis"]
[WhiteFideId "5104742"]
[BlackFideId "3509079"]
[WhiteElo "2062"]
[BlackElo "2410"]
[Result "0-1"]
[Round "01"]
[TimeControl "180+2"]
[Date "2023.04.25"]
[WhiteClock "0:00:07"]
[BlackClock "0:00:53"]

1. e4 {[%clk 0:02:56]}  c5 {[%clk 0:02:59]} 2. Nf3 {[%clk 0:02:54]}  Nc6 {[%clk 0:03:00]} 3. d4 {[%clk 0:02:53]}  cxd4 {[%clk 0:02:59]} 4. Nxd4 {[%clk 0:02:54]}  Nf6 {[%clk 0:02:59]} 5. Nc3 {[%clk 0:02:48]}  e5 {[%clk 0:02:58]} 6. Ndb5 {[%clk 0:02:24]}  d6 {[%clk 0:02:57]} 7. Nd5 {[%clk 0:02:19]}  Nxd5 {[%clk 0:02:50]} 8. exd5 {[%clk 0:02:20]}  Nb8 {[%clk 0:02:50]} 9. Be2 {[%clk 0:02:17]}  Be7 {[%clk 0:02:49]} 10. O-O {[%clk 0:02:16]}  O-O {[%clk 0:02:50]} 11. c4 {[%clk 0:02:04]}  Nd7 {[%clk 0:02:48]} 12. Be3 {[%clk 0:02:00]}  a6 {[%clk 0:02:47]} 13. Nc3 {[%clk 0:02:00]}  f5 {[%clk 0:02:47]} 14. f3 {[%clk 0:01:59]}  Bg5 {[%clk 0:02:38]} 15. Bf2 {[%clk 0:01:56]}  Nf6 {[%clk 0:02:33]} 16. Re1 {[%clk 0:01:38]}  b6 {[%clk 0:02:00]} 17. Qb3 {[%clk 0:01:08]}  Nd7 {[%clk 0:01:53]} 18. Rad1 {[%clk 0:01:02]}  a5 {[%clk 0:01:51]} 19. Nb5 {[%clk 0:00:46]}  Nc5 {[%clk 0:01:50]} 20. Qc2 {[%clk 0:00:46]}  f4 {[%clk 0:01:41]} 21. b3 {[%clk 0:00:38]}  Bf5 {[%clk 0:01:40]} 22. Qc1 {[%clk 0:00:26]}  e4 {[%clk 0:01:38]} 23. fxe4 {[%clk 0:00:22]}  f3 {[%clk 0:01:33]} 24. Be3 {[%clk 0:00:20]}  Bxe3+ {[%clk 0:01:32]} 25. Qxe3 {[%clk 0:00:21]}  fxe2 {[%clk 0:01:32]} 26. Rxe2 {[%clk 0:00:21]}  Bxe4 {[%clk 0:01:31]} 27. Rde1 {[%clk 0:00:17]}  Rc8 {[%clk 0:01:23]} 28. Nd4 {[%clk 0:00:17]}  Bg6 {[%clk 0:01:21]} 29. Nc6 {[%clk 0:00:18]}  Qf6 {[%clk 0:01:20]} 30. Ne7+ {[%clk 0:00:18]}  Kh8 {[%clk 0:01:19]} 31. Nxc8 {[%clk 0:00:19]}  Rxc8 {[%clk 0:01:18]} 32. a3 {[%clk 0:00:19]}  h5 {[%clk 0:01:17]} 33. b4 {[%clk 0:00:19]}  axb4 {[%clk 0:01:17]} 34. axb4 {[%clk 0:00:20]}  Nd3 {[%clk 0:01:18]} 35. Rf1 {[%clk 0:00:16]}  Qh4 {[%clk 0:01:18]} 36. g3 {[%clk 0:00:14]}  Qxc4 {[%clk 0:01:17]} 37. Rd1 {[%clk 0:00:11]}  Qxd5 {[%clk 0:01:15]} 38. Red2 {[%clk 0:00:11]}  Rc3 {[%clk 0:01:14]} 39. Qf4 {[%clk 0:00:10]}  Nxf4 {[%clk 0:01:12]} 40. Rxd5 {[%clk 0:00:08]}  Nxd5 {[%clk 0:01:13]} 41. Rxd5 {[%clk 0:00:08]}  Rc6 {[%clk 0:01:12]} 42. b5 {[%clk 0:00:08]}  Rc5 {[%clk 0:01:12]} 43. Rxd6 {[%clk 0:00:09]}  Be8 {[%clk 0:00:58]} 44. Rxb6 {[%clk 0:00:08]}  Rxb5 {[%clk 0:00:57]} 45. Re6 {[%clk 0:00:06]}  Bf7 {[%clk 0:00:56]} 46. Re2 {[%clk 0:00:06]}  Kh7 {[%clk 0:00:55]} 47. Kf2 {[%clk 0:00:07]}  Kg6 {[%clk 0:00:55]} 48. h4 {[%clk 0:00:08]}  Kf6 {[%clk 0:00:55]} 49. Rd2 {[%clk 0:00:08]}  Rf5+ {[%clk 0:00:55]} 50. Kg2 {[%clk 0:00:08]}  Bd5+ {[%clk 0:00:54]} 51. Kh2 {[%clk 0:00:08]}  Ke5 {[%clk 0:00:54]} 52. Kh3 {[%clk 0:00:09]}  Rf1 {[%clk 0:00:53]} 53. Re2+ {[%clk 0:00:07]}  Be4 {[%clk 0:00:54]} 54. Re3 {[%clk 0:00:07]}  Rh1# {[%clk 0:00:53]} 0-1


[Site "https://www.chess.com"]